bitfinex/quotes_SOLUSD_20250611
["timestamp","ask_amount","ask_price","bid_price","bid_amount"]
[1749645720487,16.94940448,166.33,166.28,16.94940448]
[1749645721300,40.7955,166.36,166.28,16.94940448]
[1749645721604,16.94940448,166.34,166.29,16.94940448]
[1749645721797,16.94940448,166.3,166.19,10.68931554]
[1749645721983,16.94940448,166.26,166.19,10.68931554]
[1749645722175,16.94940448,166.25,166.2,16.94940448]
[1749645722375,16.94940448,166.25,166.19,10.68931554]
[1749645722678,26.0,166.33,166.22,16.94940448]
[1749645722904,16.94940448,166.29,166.19,10.68931554]
[1749645723092,26.0,166.31,166.19,10.68931554]
[1749645723283,16.94940448,166.28,166.23,16.94940448]
[1749645723482,26.0,166.31,166.19,10.68931554]
[1749645723678,26.0,166.31,166.23,16.94940448]
[1749645723904,16.94940448,166.28,166.23,16.94940448]
[1749645725423,26.0,166.31,166.25,16.94940448]
[1749645725705,16.94940448,166.28,166.19,10.68931554]
[1749645725893,16.94940448,166.29,166.19,10.68931554]
[1749645726091,16.94940448,166.29,166.24,16.94940448]
[1749645726299,16.94940448,166.3,166.25,16.94940448]
[1749645726487,32.68,166.33,166.25,16.94940448]
[1749645726697,26.0,166.32,166.27,16.94940448]
[1749645726899,16.94940448,166.33,166.28,16.94940448]
[1749645727294,66.14940448,166.33,166.28,16.94940448]
[1749645727679,66.14940448,166.33,166.27,16.94940448]
[1749645727680,16.94940448,166.32,166.27,16.94940448]
[1749645728410,16.94940448,166.32,166.26,16.94940448]
[1749645729907,16.94940448,166.32,166.27,16.94940448]
[1749645730097,16.94940448,166.32,166.26,16.94940448]
[1749645730619,49.2,166.33,166.26,16.94940448]
[1749645730826,16.94940448,166.32,166.27,16.94940448]
[1749645731115,49.2,166.33,166.27,16.94940448]
[1749645731522,16.94940448,166.32,166.27,16.94940448]
[1749645731691,49.2,166.34,166.27,16.94940448]
[1749645731892,16.94940448,166.33,166.28,16.94940448]
[1749645732092,49.2,166.34,166.26,16.94940448]
[1749645732512,49.2,166.34,166.27,16.94940448]
[1749645732719,16.94940448,166.32,166.27,16.94940448]
[1749645733423,212.84940448,166.33,166.21,16.94940448]
[1749645733627,49.2,166.32,166.27,16.94940448]
[1749645733821,49.2,166.31,166.27,16.94940448]
[1749645734021,66.14940448,166.31,166.25,16.94940448]
[1749645734199,66.14940448,166.31,166.19,19.88956598]
[1749645734404,49.2,166.3,166.21,16.94940448]
[1749645734605,49.2,166.3,166.27,16.94940448]
[1749645734820,49.2,166.29,166.27,16.94940448]
[1749645735516,49.2,166.29,166.26,16.94940448]
[1749645735835,49.2,166.29,166.19,19.88956598]
[1749645736009,49.2,166.28,166.19,19.88956598]
[1749645736322,16.94940448,166.3,166.19,19.88956598]
[1749645736323,49.2,166.27,166.24,16.94940448]
[1749645736525,49.2,166.27,166.25,16.94940448]
[1749645736713,49.2,166.27,166.26,16.94940448]
[1749645736906,49.2,166.27,166.19,10.68931554]
[1749645736907,49.2,166.26,166.21,16.94940448]
[1749645737223,66.14940448,166.26,166.21,16.94940448]
[1749645737618,49.2,166.26,166.22,16.94940448]
[1749645737930,49.2,166.26,166.19,10.68931554]
[1749645738314,49.2,166.26,166.22,16.94940448]
[1749645738636,49.2,166.26,166.19,10.68931554]
[1749645738800,49.2,166.26,166.21,16.94940448]
[1749645739328,49.2,166.26,166.19,10.68931554]
[1749645739518,66.14940448,166.26,166.21,16.94940448]
[1749645739711,49.2,166.26,166.21,16.94940448]
[1749645740312,66.14940448,166.26,166.2,16.94940448]
[1749645740599,49.2,166.25,166.2,16.94940448]
[1749645740797,49.2,166.25,166.21,16.94940448]
[1749645741907,49.2,166.24,166.21,16.94940448]
[1749645742116,49.2,166.23,166.21,16.94940448]
[1749645742330,49.2,166.27,166.22,16.94940448]
[1749645742528,16.94940448,166.26,166.21,16.94940448]
[1749645742716,16.94940448,166.26,166.2,16.94940448]
[1749645742922,16.94940448,166.26,166.19,10.68931554]
[1749645742923,16.94940448,166.24,166.19,27.63872002]
[1749645743104,16.94940448,166.23,166.19,10.68931554]
[1749645743410,16.94940448,166.21,166.09,2.98803759]
[1749645743602,49.2,166.23,166.17,16.94940448]
[1749645743820,16.94940448,166.22,166.17,16.94940448]
[1749645745008,16.94940448,166.22,166.1,26.81725492]
[1749645745209,16.94940448,166.22,166.17,16.94940448]
[1749645746646,98.72940448,166.24,166.12,0.14216157]
[1749645746861,16.94940448,166.22,166.17,16.94940448]
[1749645747340,16.94940448,166.22,166.18,16.94940448]
[1749645747964,81.78,166.24,166.18,16.94940448]
[1749645748260,148.6777,166.25,166.2,16.94940448]
[1749645748261,49.2,166.23,166.2,16.94940448]
[1749645748558,49.2,166.22,166.2,16.94940448]
[1749645748765,8.4261,166.26,166.21,16.94940448]
[1749645748963,8.4261,166.26,166.22,16.94940448]
[1749645749202,25.37550448,166.26,166.16,26.0]
[1749645749347,25.37550448,166.26,166.21,16.94940448]
[1749645749348,8.4261,166.26,166.21,16.94940448]
[1749645749553,59.88,166.29,166.16,35.20025044]
[1749645749856,76.82940448,166.29,166.24,16.94940448]
[1749645750548,49.2,166.29,166.27,16.94940448]
[1749645750860,7.8836,166.31,166.27,16.94940448]
[1749645751172,16.94940448,166.32,166.27,16.94940448]
[1749645751550,16.94940448,166.31,166.19,36.92495262]
[1749645751874,16.94940448,166.3,166.25,16.94940448]
[1749645752080,16.94940448,166.31,166.19,36.92495262]
[1749645752371,195.9,166.34,166.21,16.94940448]
[1749645752575,195.9,166.34,166.28,16.94940448]
[1749645752751,195.9,166.34,166.22,26.0]
[1749645752951,195.9,166.34,166.22,35.20025044]
[1749645753181,49.2,166.34,166.31,16.94940448]
[1749645753358,16.94940448,166.36,166.31,16.94940448]
[1749645754052,7.8525,166.37,166.31,16.94940448]
[1749645754251,16.94940448,166.35,166.23,27.99206087]
[1749645754578,16.94940448,166.35,166.3,16.94940448]
[1749645754949,7.8525,166.37,166.23,27.99206087]
[1749645755154,7.8525,166.37,166.31,16.94940448]
[1749645755462,24.80190448,166.37,166.23,27.99206087]
[1749645755662,16.94940448,166.36,166.23,27.99206087]
[1749645755977,16.94940448,166.35,166.23,27.8498993]
[1749645756191,7.8525,166.37,166.23,27.8498993]
[1749645756478,16.94940448,166.37,166.32,16.94940448]
[1749645756699,49.2,166.36,166.32,16.94940448]
[1749645756983,49.2,166.36,166.31,16.94940448]
[1749645757293,49.2,166.36,166.24,0.14216157]
[1749645757589,146.7,166.39,166.24,0.14216157]
[1749645757590,146.7,166.39,166.27,18.79181043]
[1749645757896,146.7,166.39,166.26,26.0]
[1749645757897,16.94940448,166.37,166.28,9.20025044]
[1749645758059,16.94940448,166.35,166.3,16.94940448]
[1749645758257,49.2,166.39,166.31,16.94940448]
[1749645758469,16.94940448,166.34,166.23,18.79181043]
[1749645758680,195.9,166.38,166.28,16.94940448]
[1749645758861,16.94940448,166.33,166.22,35.20025044]
[1749645759167,34.0470283,166.4,166.23,18.79181043]
[1749645759484,16.94940448,166.36,166.31,16.94940448]
[1749645759659,195.9,166.39,166.31,16.94940448]
[1749645759856,16.94940448,166.36,166.31,16.94940448]
[1749645760073,16.94940448,166.36,166.3,16.94940448]
[1749645760589,195.9,166.39,166.23,44.64964886]
[1749645760785,28.0374,166.4,166.23,44.64964886]
[1749645760786,16.94940448,166.36,166.3,16.94940448]
[1749645760993,195.9,166.38,166.29,16.94940448]
[1749645760994,66.14940448,166.35,166.29,16.94940448]
[1749645761163,146.7,166.38,166.23,44.64964886]
[1749645761164,16.94940448,166.33,166.23,26.0]
[1749645761496,8.2615,166.33,166.26,16.94940448]
[1749645761792,25.21090448,166.33,166.27,16.94940448]
[1749645762081,16.94940448,166.32,166.27,16.94940448]
[1749645762382,25.21090448,166.33,166.25,10.97456176]
[1749645762587,25.21090448,166.33,166.27,16.94940448]
[1749645762763,25.21090448,166.33,166.25,10.97456176]
[1749645763169,49.2,166.36,166.25,10.97456176]
[1749645763365,16.94940448,166.33,166.28,16.94940448]
[1749645763777,49.2,166.36,166.29,16.94940448]
[1749645764088,16.94940448,166.34,166.29,16.94940448]
[1749645764291,40.9142,166.37,166.28,16.94940448]
[1749645764591,40.9142,166.37,166.26,16.94940448]
[1749645764592,16.94940448,166.31,166.26,16.94940448]
[1749645764789,49.2,166.36,166.26,16.94940448]
[1749645764994,49.2,166.35,166.25,10.97456176]
[1749645765176,16.94940448,166.31,166.26,16.94940448]
[1749645765895,49.2,166.35,166.26,16.94940448]
[1749645766073,49.2,166.34,166.27,16.94940448]
[1749645766267,49.2,166.34,166.25,10.97456176]
[1749645766598,16.94940448,166.31,166.26,16.94940448]
[1749645766782,49.2,166.3,166.26,16.94940448]
[1749645766984,66.14940448,166.3,166.25,27.92396624]
[1749645767508,49.2,166.3,166.25,10.97456176]
[1749645767705,49.2,166.3,166.26,16.94940448]
[1749645767878,49.2,166.3,166.25,10.97456176]
[1749645768079,49.2,166.3,166.28,16.94940448]
[1749645768275,49.2,166.3,166.27,16.94940448]
[1749645768482,49.2,166.3,166.28,16.94940448]
[1749645768979,49.2,166.3,166.29,16.94940448]
[1749645769167,49.2,166.3,166.25,10.97456176]
[1749645769369,8.4342,166.37,166.25,10.97456176]
[1749645769783,10.40443322,166.36,166.25,10.97456176]
[1749645769993,2.0374,166.4,166.35,10.40443322]
[1749645770174,2.0374,166.4,166.29,0.14216157]
[1749645770374,2.0374,166.4,166.35,10.40443322]
[1749645770589,8.1125,166.41,166.28,26.57966157]
[1749645770790,8.1125,166.41,166.34,10.40443322]
[1749645770991,18.51693322,166.41,166.36,10.40443322]
[1749645771869,8.1125,166.41,166.36,10.40443322]
[1749645772069,10.40443322,166.4,166.29,26.14216157]
[1749645772269,8.1125,166.41,166.29,26.14216157]
[1749645772575,10.40443322,166.4,166.35,10.40443322]
[1749645772800,8.1125,166.41,166.35,10.40443322]
[1749645772983,10.40443322,166.4,166.35,10.40443322]
[1749645773180,8.1125,166.41,166.37,10.40443322]
[1749645773510,49.2,166.4,166.39,16.93886965]
[1749645773878,49.2,166.4,166.33,0.14216157]
[1749645774099,49.2,166.4,166.39,16.93886965]
[1749645774418,49.2,166.4,166.35,26.0]
[1749645774697,10.56,166.49,166.39,16.93886965]
[1749645774698,49.2,166.44,166.39,16.93886965]
[1749645775003,49.2,166.48,166.43,16.93886965]
[1749645775298,23.24773009,166.52,166.47,16.93886965]
[1749645775506,66.13886965,166.51,166.46,16.93886965]
[1749645775679,49.2,166.51,166.45,16.93886965]
[1749645775877,49.2,166.51,166.39,1.0536]
[1749645776091,49.2,166.5,166.43,16.93886965]
[1749645776289,16.93886965,166.48,166.43,16.93886965]
[1749645776506,16.93886965,166.5,166.45,16.93886965]
[1749645776704,16.93886965,166.47,166.37,1.05747793]
[1749645776901,16.93886965,166.47,166.41,16.93886965]
[1749645777198,51.06964886,166.51,166.37,1.05747793]
[1749645777396,16.93886965,166.47,166.42,16.93886965]
[1749645777709,16.93886965,166.47,166.37,1.05747793]
[1749645777710,16.93886965,166.45,166.39,16.93886965]
[1749645777897,7.0268,166.45,166.37,1.05747793]
[1749645778382,7.0268,166.45,166.4,16.93886965]
[1749645778701,16.93886965,166.44,166.39,16.93886965]
[1749645778917,7.0268,166.45,166.38,16.93886965]
[1749645779282,16.93886965,166.44,166.39,16.93886965]
[1749645779484,7.0268,166.45,166.37,1.05747793]
[1749645779779,16.93886965,166.43,166.37,1.05747793]
[1749645779978,16.93886965,166.43,166.38,16.93886965]
[1749645780300,7.0268,166.45,166.38,16.93886965]
[1749645780495,7.2543,166.49,166.4,16.93886965]
[1749645780689,7.2543,166.49,166.37,1.05747793]
[1749645780902,16.93886965,166.46,166.37,1.05747793]
[1749645781078,16.93886965,166.45,166.37,1.05747793]
[1749645781280,7.2543,166.49,166.41,16.93886965]
[1749645781281,16.93886965,166.46,166.41,16.93886965]
[1749645781502,16.93886965,166.46,166.4,16.93886965]
[1749645781700,7.2543,166.49,166.41,16.93886965]
[1749645781701,16.93886965,166.47,166.41,16.93886965]
[1749645782196,16.93886965,166.46,166.41,16.93886965]
[1749645782398,16.93886965,166.45,166.4,16.93886965]
[1749645782596,7.2543,166.49,166.41,16.93886965]
[1749645782932,7.2543,166.49,166.42,16.93886965]
[1749645783410,7.2543,166.49,166.41,16.93886965]
[1749645783616,7.2543,166.49,166.4,16.93886965]
[1749645783617,16.93886965,166.45,166.4,16.93886965]
[1749645783908,16.93886965,166.41,166.37,1.05747793]
[1749645784205,16.93886965,166.38,166.37,1.05747793]
[1749645784407,16.93886965,166.43,166.37,1.05747793]
[1749645784606,16.93886965,166.38,166.37,1.05747793]
[1749645784980,16.93886965,166.43,166.37,1.05747793]
[1749645785422,16.93886965,166.39,166.37,1.05747793]
[1749645785584,10.54,166.46,166.37,1.05747793]
[1749645785585,16.93886965,166.4,166.37,1.05747793]
[1749645785786,16.93886965,166.39,166.37,1.05747793]
[1749645785985,10.54,166.46,166.37,1.05747793]
[1749645786494,16.93886965,166.39,166.37,1.05747793]
[1749645786698,16.93886965,166.38,166.37,1.05747793]
[1749645787216,16.93886965,166.39,166.37,1.05747793]
[1749645787413,29.18964886,166.46,166.37,1.05747793]
[1749645787608,16.93886965,166.38,166.37,1.05747793]
[1749645788824,9.3899,166.42,166.37,1.05747793]
[1749645789329,16.93886965,166.41,166.37,1.05747793]
[1749645789497,16.93886965,166.4,166.37,1.05747793]
[1749645789816,16.93886965,166.38,166.37,1.05747793]
[1749645790309,9.3899,166.42,166.37,1.05747793]
[1749645790712,16.93886965,166.38,166.37,1.05747793]
[1749645791797,41.7699,166.42,166.37,1.05747793]
[1749645791999,16.93886965,166.39,166.37,1.05747793]
[1749645792997,41.7699,166.42,166.37,1.05747793]
[1749645793894,16.93886965,166.39,166.37,1.05747793]
[1749645794101,9.3899,166.42,166.37,1.05747793]
[1749645794314,16.93886965,166.39,166.37,1.05747793]
[1749645794737,9.3899,166.42,166.37,1.05747793]
[1749645794907,16.93886965,166.39,166.37,1.05747793]
[1749645795509,9.3899,166.42,166.37,1.05747793]
[1749645795895,16.93886965,166.41,166.37,1.05747793]
[1749645796098,9.3899,166.42,166.37,1.05747793]
[1749645796300,7.4027,166.42,166.37,17.99634758]
[1749645796619,16.93886965,166.43,166.38,16.93886965]
[1749645797117,19.7352,166.46,166.37,1.05747793]
[1749645797441,19.7352,166.46,166.38,16.93886965]
[1749645797442,16.93886965,166.43,166.38,16.93886965]
[1749645797625,16.93886965,166.42,166.37,17.99634758]
[1749645797814,19.7352,166.46,166.37,17.99634758]
[1749645798008,19.7352,166.46,166.38,16.93886965]
[1749645798414,19.7352,166.46,166.41,16.93886965]
[1749645798415,9.1952,166.46,166.41,16.93886965]
[1749645798623,16.93886965,166.45,166.4,16.93886965]
[1749645799117,7.5979,166.5,166.4,16.93886965]
[1749645799434,16.93886965,166.46,166.41,16.93886965]
[1749645799804,16.93886965,166.46,166.37,1.05747793]
[1749645800027,7.5979,166.5,166.41,16.93886965]
[1749645800232,16.93886965,166.46,166.41,16.93886965]
[1749645800405,16.93886965,166.46,166.37,1.05747793]
[1749645800606,16.93886965,166.45,166.4,16.93886965]
[1749645801101,7.5979,166.5,166.42,16.93886965]
[1749645801299,16.93886965,166.47,166.42,16.93886965]
[1749645801505,16.93886965,166.47,166.38,0.14216157]
[1749645801722,16.93886965,166.46,166.41,16.93886965]
[1749645801926,16.93886965,166.48,166.43,16.93886965]
[1749645802324,16.93886965,166.5,166.45,16.93886965]
[1749645804228,2.48773009,166.52,166.41,0.14216157]
[1749645804434,16.93886965,166.49,166.41,0.14216157]
[1749645804622,2.48773009,166.52,166.42,26.0]
[1749645804815,2.48773009,166.52,166.45,16.93886965]
[1749645805139,16.93886965,166.5,166.42,26.0]
[1749645805313,2.48773009,166.52,166.41,26.14216157]
[1749645805517,2.48773009,166.52,166.46,16.93886965]
[1749645805714,16.93886965,166.5,166.41,34.42374534]
[1749645805923,16.93886965,166.49,166.44,16.93886965]
[1749645806119,2.48773009,166.52,166.44,16.93886965]
[1749645806317,2.48773009,166.52,166.41,34.28158377]
[1749645806517,16.93886965,166.49,166.44,16.93886965]
[1749645806715,2.48773009,166.52,166.45,16.93886965]
[1749645806936,16.93886965,166.5,166.45,16.93886965]
[1749645807140,2.48773009,166.52,166.41,34.28158377]
[1749645807141,16.93886965,166.49,166.41,34.28158377]
[1749645807434,16.93886965,166.5,166.45,16.93886965]
[1749645807809,2.48773009,166.52,166.46,16.93886965]
[1749645808010,16.93886965,166.5,166.45,16.93886965]
[1749645808206,2.48773009,166.52,166.42,0.54246157]
[1749645808416,2.48773009,166.52,166.48,16.93886965]
[1749645808645,19.42659974,166.52,166.46,26.0]
[1749645808938,9.94913009,166.52,166.46,16.93886965]
[1749645809109,9.94913009,166.52,166.5,16.93886965]
[1749645809110,2.48773009,166.52,166.5,16.93886965]
[1749645809312,2.48773009,166.52,166.47,26.0]
[1749645809516,2.48773009,166.52,166.5,16.93886965]
[1749645810039,2.48773009,166.52,166.48,0.14216157]
[1749645810216,2.48773009,166.52,166.51,16.93886965]
[1749645812038,16.93886965,166.61,166.49,16.86138279]
[1749645812237,7.3709,166.64,166.56,16.93886965]
[1749645812414,7.3709,166.64,166.57,16.93886965]
[1749645812614,0.15,166.67,166.55,26.0]
[1749645812815,7.4769,166.66,166.61,16.93886965]
[1749645813211,7.4769,166.66,166.55,34.28158377]
[1749645813417,0.15,166.67,166.65,33.8777393]
[1749645813627,16.93886965,166.78,166.66,51.36261499]
[1749645813841,7.4769,166.81,166.66,34.42374534]
[1749645814140,7.5489,166.9,166.76,16.93886965]
[1749645814524,5.99168047,166.9,166.73,26.0]
[1749645814715,16.93886965,166.83,166.76,16.93886965]
[1749645815148,16.93886965,166.81,166.66,6.75094345]
[1749645815319,5.99375399,166.85,166.69,26.0]
[1749645815635,16.93886965,166.8,166.74,16.93886965]
[1749645815836,10.0,166.95,166.76,16.93886965]
[1749645816051,16.93886965,166.85,166.72,0.14216157]
[1749645816216,16.93886965,166.85,166.76,16.93886965]
[1749645816540,18.33333333,166.97,166.76,34.01990087]
[1749645816748,18.33333333,166.97,166.77,0.14216157]
[1749645817042,18.33333333,166.97,166.82,16.93886965]
[1749645817043,7.4871,166.89,166.82,16.93886965]
[1749645817244,7.4871,166.96,166.82,26.0]
[1749645817420,7.4871,166.96,166.8,26.0]
[1749645817615,16.93886965,166.91,166.85,16.93886965]
[1749645817818,7.4871,166.96,166.79,40.88203377]
[1749645817819,26.0,166.95,166.79,26.0]
[1749645818043,16.93886965,166.87,166.77,26.0]
[1749645818237,7.4871,166.96,166.77,44.64964886]
[1749645818429,7.4871,166.96,166.8,0.14216157]
[1749645818750,16.93886965,166.9,166.84,16.93886965]
[1749645818946,7.4871,166.96,166.89,16.93886965]
[1749645819164,7.4871,166.96,166.92,16.93886965]
[1749645819317,7.4871,166.96,166.94,16.93886965]
[1749645819653,6.20697995,166.95,166.91,0.14216157]
[1749645819945,6.20697995,166.95,166.94,17.08103122]
[1749645820151,6.20697995,166.95,166.94,10.85142899]
[1749645820338,6.20697995,166.95,166.94,10.70926742]
[1749645820727,6.20697995,166.95,166.94,27.64813707]
[1749645822023,6.20697995,166.95,166.94,27.79029864]
[1749645822236,8.33333333,166.97,166.95,0.14216157]
[1749645822417,8.33333333,166.97,166.96,16.93886965]
[1749645822630,8.33333333,166.97,166.94,10.70926742]
[1749645823043,8.33333333,166.97,166.96,16.93886965]
[1749645823740,2.48773009,167.05,166.98,0.14216157]
[1749645823944,2.48773009,167.05,167.04,16.93886965]
[1749645824341,8.33333333,167.15,167.05,0.14216157]
[1749645824540,8.33333333,167.15,167.05,18.79181043]
[1749645824737,16.93886965,167.13,166.98,6.931499]
[1749645824935,16.93886965,167.11,167.0,26.0]
[1749645825133,18.64964886,167.14,166.98,32.22]
[1749645825325,16.93886965,167.07,167.01,16.93886965]
[1749645825648,50.63301287,167.14,167.03,16.93886965]
[1749645825947,50.63301287,167.14,166.98,26.0]
[1749645826142,50.63301287,167.14,166.98,42.93886965]
[1749645826324,16.93886965,167.1,166.99,0.14216157]
[1749645826519,31.98336401,167.14,167.04,16.93886965]
[1749645826941,16.93886965,167.1,167.04,16.93886965]
[1749645827150,5.98336401,167.14,166.98,42.93886965]
[1749645827340,1.795,167.13,166.99,0.14216157]
[1749645827540,1.795,167.13,167.04,16.93886965]
[1749645828054,16.93886965,167.08,166.98,26.0]
[1749645828229,6.9871,167.09,166.98,42.93886965]
[1749645828538,6.9871,167.09,166.99,18.64964886]
[1749645828741,1.795,167.13,166.99,18.64964886]
[1749645828742,1.795,167.13,167.07,16.93886965]
[1749645828931,18.73386965,167.13,167.02,26.0]
[1749645829132,1.795,167.13,167.02,26.0]
[1749645829339,16.93886965,167.11,167.05,16.93886965]
[1749645829533,1.795,167.13,167.05,16.93886965]
[1749645829943,7.77839617,167.13,166.98,0.14216157]
[1749645830152,7.77839617,167.13,167.01,16.93886965]
[1749645830356,7.77839617,167.13,166.95,18.64964886]
[1749645830540,7.77839617,167.13,167.0,16.93886965]
[1749645830738,7.77839617,167.13,167.01,16.93886965]
[1749645830946,7.77839617,167.13,166.96,0.14216157]
[1749645831142,16.93886965,167.06,166.98,26.0]
[1749645831331,1.795,167.13,167.01,16.93886965]
[1749645831536,1.795,167.13,166.98,26.0]
[1749645831834,1.795,167.13,167.01,16.93886965]
[1749645832039,16.93886965,167.07,166.98,26.0]
[1749645832357,16.93886965,167.08,166.98,26.0]
[1749645832532,16.93886965,167.06,167.01,16.93886965]
[1749645832733,16.93886965,167.08,167.02,16.93886965]
[1749645832938,1.795,167.13,166.99,0.14216157]
[1749645833459,59.44071402,167.11,166.98,26.0]
[1749645833639,1.795,167.13,166.98,26.0]
[1749645833640,48.29558014,167.02,166.99,0.14216157]
[1749645833843,1.795,167.13,167.01,16.93886965]
[1749645834162,1.795,167.13,167.02,16.93886965]
[1749645834335,16.93886965,167.08,167.02,16.93886965]
[1749645834538,1.795,167.13,167.03,16.93886965]
[1749645835135,16.93886965,167.07,166.98,44.79181043]
[1749645835362,16.93886965,167.09,167.03,16.93886965]
[1749645835543,16.93886965,167.08,167.02,16.93886965]
[1749645835733,16.93886965,167.05,166.97,26.0]
[1749645836059,16.93886965,167.06,167.01,16.93886965]
[1749645836243,16.93886965,167.04,166.99,16.93886965]
[1749645836443,16.93886965,167.04,166.97,26.0]
[1749645836444,18.64964886,167.12,167.0,16.93886965]
[1749645836758,1.795,167.13,167.03,16.93886965]
[1749645836961,1.795,167.13,166.98,16.93886965]
[1749645836962,1.795,167.13,167.0,0.14216157]
[1749645837253,16.93886965,167.09,167.04,16.93886965]
[1749645837432,1.795,167.13,167.01,26.0]
[1749645837633,1.795,167.13,167.02,0.14216157]
[1749645837837,16.93886965,167.11,167.02,0.14216157]
[1749645838058,1.795,167.13,167.05,16.93886965]
[1749645838269,1.795,167.13,167.03,0.14216157]
[1749645838431,18.73386965,167.13,167.08,16.93886965]
[1749645838763,18.73386965,167.13,167.03,0.14216157]
[1749645838947,15.56193333,167.15,167.09,16.93886965]
[1749645839153,8.33333333,167.15,167.11,16.93886965]
[1749645839341,16.93886965,167.14,167.08,16.93886965]
[1749645839539,8.33333333,167.15,167.1,16.93886965]
[1749645840059,8.33333333,167.15,167.05,26.0]
[1749645840060,8.33333333,167.15,167.14,16.93886965]
[1749645840272,8.33333333,167.15,167.09,43.08103122]
[1749645840441,25.27220298,167.15,167.05,8.60203377]
[1749645840641,1.8797,167.14,166.96,8.60203377]
[1749645840841,16.93886965,167.08,166.95,5.98981731]
[1749645841056,7.4521,167.1,166.95,14.59185108]
[1749645841355,7.4521,167.1,167.06,16.93886965]
[1749645841548,7.4521,167.1,167.07,16.93886965]
[1749645841862,7.4521,167.1,167.05,16.93886965]
[1749645842069,7.4521,167.1,167.04,0.14216157]
[1749645842235,7.4521,167.1,167.08,16.93886965]
[1749645842438,7.4521,167.1,167.04,0.14216157]
[1749645842671,24.39096965,167.1,167.01,0.14216157]
[1749645842855,24.39096965,167.1,167.01,26.0]
[1749645843059,7.4521,167.1,166.96,8.60203377]
[1749645843367,7.4521,167.1,167.04,16.93886965]
[1749645843678,7.4521,167.1,166.95,18.64964886]
[1749645843973,7.4521,167.1,166.94,10.70926742]
[1749645843974,16.93886965,167.05,166.94,10.70926742]
[1749645844176,16.93886965,167.06,166.97,26.0]
[1749645844353,16.93886965,167.06,167.0,16.93886965]
[1749645844669,7.4521,167.1,167.0,16.93886965]
[1749645844844,16.93886965,167.06,166.97,26.0]
[1749645845043,16.93886965,167.05,166.99,16.93886965]
[1749645845259,16.93886965,167.09,166.94,10.70926742]
[1749645845661,16.93886965,167.04,166.98,16.93886965]
[1749645845863,16.93886965,167.06,167.0,16.93886965]
[1749645846355,16.93886965,167.05,166.95,0.14216157]
[1749645846669,16.93886965,167.09,166.98,16.93886965]
[1749645846846,7.4521,167.1,167.03,16.93886965]
[1749645847043,24.39096965,167.1,167.05,16.93886965]
[1749645847366,24.39096965,167.1,167.04,16.93886965]
[1749645847742,24.39096965,167.1,167.0,0.14216157]
[1749645847965,7.4521,167.1,167.05,16.93886965]
[1749645848157,7.4521,167.1,167.06,16.93886965]
[1749645848356,7.4521,167.1,167.03,26.0]
[1749645848549,7.4521,167.1,167.01,0.14216157]
[1749645848748,7.4521,167.1,167.0,26.0]
[1749645849067,7.4521,167.1,167.03,16.93886965]
[1749645849445,7.4521,167.1,167.06,16.93886965]
[1749645849944,1.8797,167.14,167.01,0.14216157]
[1749645849945,1.8797,167.14,167.05,26.0]
[1749645850171,18.81856965,167.14,167.08,16.93886965]
[1749645850546,16.93886965,167.13,167.07,16.93886965]
[1749645850840,1.8797,167.14,167.05,16.93886965]
[1749645851045,16.93886965,167.12,167.06,16.93886965]
[1749645851258,16.93886965,167.11,167.05,16.93886965]
[1749645851455,1.8797,167.14,166.96,8.60203377]
[1749645851456,16.93886965,167.09,166.96,8.60203377]
[1749645851656,16.93886965,167.09,166.94,10.70926742]
[1749645851657,16.93886965,167.02,166.94,10.70926742]
[1749645851846,16.93886965,167.02,166.96,16.93886965]
[1749645852060,16.93886965,167.03,166.97,16.93886965]
[1749645852363,16.93886965,166.99,166.94,10.70926742]
[1749645852574,6.8574,166.96,166.78,10.4]
[1749645852761,16.93886965,166.93,166.81,8.60203377]
[1749645853074,16.93886965,166.93,166.88,16.93886965]
[1749645853259,25.19284404,166.93,166.87,25.19284404]
[1749645853572,25.19284404,166.91,166.82,10.96442313]
[1749645853741,8.5876,166.96,166.85,25.19284404]
[1749645853742,14.57712186,166.96,166.85,25.19284404]
[1749645853945,8.5876,166.96,166.86,25.19284404]
[1749645854166,8.5876,166.96,166.84,25.19284404]
[1749645854167,25.19284404,166.9,166.84,25.19284404]
[1749645854361,25.19284404,166.89,166.83,25.19284404]
[1749645854548,8.5876,166.96,166.88,25.19284404]
[1749645855051,25.19284404,166.89,166.82,10.96442313]
[1749645855247,25.19284404,166.87,166.82,10.96442313]
[1749645855753,24.64024006,166.93,166.82,10.96442313]
[1749645855952,24.64024006,166.93,166.82,36.15726717]